bitfinex/quotes_BTCUSD_20241023
["timestamp","ask_amount","ask_price","bid_price","bid_amount"]
[1729697132001,0.17479423,66196.0,66177.0,0.23547745]
[1729697132264,0.17479423,66196.0,66187.0,0.22547745]
[1729697132265,0.151074,66193.0,66187.0,0.22547745]
[1729697132524,0.01381769,66194.0,66187.0,0.151086]
[1729697132756,0.01381769,66196.0,66182.0,0.302192]
[1729697132995,0.01381769,66196.0,66188.0,0.151083]
[1729697133230,0.151068,66196.0,66187.0,0.151086]
[1729697133465,0.01381789,66198.0,66187.0,0.45267781]
[1729697133696,0.151067,66196.0,66188.0,0.151084]
[1729697133928,0.01381789,66198.0,66187.0,0.15050381]
[1729697134168,0.151065,66197.0,66188.0,0.151083]
[1729697134411,0.01381789,66198.0,66187.0,0.15050381]
[1729697134647,0.15107,66195.0,66187.0,0.15050381]
[1729697135431,0.15107,66195.0,66187.0,0.30158981]
[1729697135697,0.02487325,66196.0,66189.0,0.15108]
[1729697135938,0.151065,66197.0,66189.0,0.15050381]
[1729697136154,0.02487343,66198.0,66189.0,0.15050381]
[1729697136434,0.02487343,66198.0,66189.0,0.30158481]
[1729697136646,0.151064,66197.0,66189.0,0.30158481]
[1729697136883,0.17593897,66198.0,66190.0,0.151079]
[1729697137097,0.17593897,66198.0,66190.0,0.15108]
[1729697137319,0.16488089,66198.0,66190.0,0.15108]
[1729697137536,0.01381789,66198.0,66190.0,0.30216]
[1729697137785,0.01381789,66198.0,66197.0,0.151064]
[1729697138008,0.22712345,66204.0,66203.0,0.15105]
[1729697138226,0.22712345,66204.0,66203.0,0.30155381]
[1729697138440,0.001646,66204.0,66203.0,0.30155381]
[1729697138877,0.001646,66204.0,66203.0,0.71338453]
[1729697139121,0.001646,66204.0,66203.0,0.5385903]
[1729697139589,0.001646,66204.0,66203.0,0.15050381]
[1729697139801,0.001646,66204.0,66197.0,0.151064]
[1729697140024,0.001646,66204.0,66198.0,0.15050381]
[1729697140244,0.001646,66204.0,66198.0,0.30156481]
[1729697140693,0.15105,66203.0,66198.0,0.15050381]
[1729697140905,0.16653311,66204.0,66198.0,0.15050381]
[1729697141122,0.151054,66202.0,66198.0,0.15050381]
[1729697141341,0.01383811,66202.0,66189.0,0.15108]
[1729697141567,0.01383811,66202.0,66194.0,0.22547745]
[1729697141568,0.151068,66195.0,66194.0,0.22547745]
[1729697141803,0.01383811,66196.0,66190.0,0.15050381]
[1729697142037,0.302114,66200.0,66190.0,0.151078]
[1729697142038,0.18863234,66199.0,66190.0,0.151078]
[1729697142274,0.01383811,66198.0,66188.0,0.151084]
[1729697142496,0.151069,66195.0,66189.0,0.15050381]
[1729697142711,0.01383811,66196.0,66189.0,0.15050381]
[1729697142925,0.01383811,66195.0,66189.0,0.15050381]
[1729697143148,0.151064,66197.0,66189.0,0.60374681]
[1729697143380,0.16490411,66196.0,66189.0,0.30158381]
[1729697143587,0.01385999,66195.0,66192.0,0.151074]
[1729697143822,0.47689523,66203.0,66189.0,0.15050381]
[1729697143823,0.01385999,66194.0,66189.0,0.15050381]
[1729697144034,0.01385999,66193.0,66190.0,0.302158]
[1729697144305,0.15106,66199.0,66192.0,0.151075]
[1729697144509,0.01386604,66198.0,66193.0,0.15050381]
[1729697144727,0.01386604,66197.0,66194.0,0.151071]
[1729697144947,0.01386604,66196.0,66193.0,0.30157581]
[1729697145164,0.01386658,66195.0,66194.0,0.151071]
[1729697145820,0.01386658,66195.0,66193.0,0.15050381]
[1729697146034,0.02217669,66200.0,66193.0,0.15050381]
[1729697146250,0.03605069,66199.0,66193.0,0.15050381]
[1729697146471,0.03605069,66198.0,66193.0,0.15050381]
[1729697146681,0.03605069,66197.0,66193.0,0.15050381]
[1729697146885,0.03605069,66196.0,66193.0,0.15050381]
[1729697147330,0.03605069,66196.0,66188.0,0.302168]
[1729697147331,0.03605069,66195.0,66186.0,0.302177]
[1729697147535,0.47689623,66203.0,66186.0,0.302177]
[1729697147536,0.47689623,66203.0,66187.0,0.15050381]
[1729697147772,0.22547745,66197.0,66187.0,0.15050381]
[1729697147998,0.10652432,66202.0,66185.0,0.22547745]
[1729697147999,0.15108,66190.0,66185.0,0.22547745]
[1729697148229,0.17479423,66193.0,66185.0,0.37598126]
[1729697148230,0.18720535,66189.0,66185.0,0.37598126]
[1729697148450,0.302155,66191.0,66182.0,0.15192]
[1729697148451,0.18720835,66188.0,66182.0,0.000823]
[1729697148666,0.17479423,66193.0,66182.0,0.000823]
[1729697148667,0.03612235,66187.0,66182.0,0.000823]
[1729697148876,0.18721135,66186.0,66182.0,0.000823]
[1729697149093,0.30217,66188.0,66182.0,0.000823]
[1729697149094,0.03612235,66185.0,66182.0,0.000823]
[1729697149334,0.03612235,66184.0,66182.0,0.000823]
[1729697149539,0.03594049,66183.0,66182.0,0.000823]
[1729697150177,0.18703649,66183.0,66182.0,0.000823]
[1729697151955,0.39597316,66183.0,66182.0,0.000823]
[1729697153681,0.26863649,66183.0,66182.0,0.000823]
[1729697153910,0.54843072,66183.0,66182.0,0.000823]
[1729697154135,0.35156932,66183.0,66182.0,0.000823]
[1729697156012,0.35356932,66183.0,66182.0,0.000823]
[1729697156229,0.37726755,66183.0,66166.0,0.22547745]
[1729697156435,0.42789423,66181.0,66166.0,0.22547745]
[1729697156662,0.59727136,66181.0,66166.0,0.22547745]
[1729697156886,0.42047713,66181.0,66166.0,0.22547745]
[1729697157109,0.4647568,66181.0,66166.0,0.22547745]
[1729697157343,0.57098094,66181.0,66166.0,0.22547745]
[1729697157590,0.63740622,66181.0,66166.0,0.22547745]
[1729697158542,0.57098094,66181.0,66166.0,0.22547745]
[1729697158793,0.74577517,66181.0,66166.0,0.22547745]
[1729697159060,0.57098094,66181.0,66166.0,0.22547745]
[1729697160124,0.59312714,66181.0,66166.0,0.22547745]
[1729697160352,0.83434665,66181.0,66166.0,0.22547745]
[1729697160605,0.50904861,66181.0,66166.0,0.22547745]
[1729697160922,0.28711952,66181.0,66166.0,0.22547745]
[1729697161148,0.01387332,66181.0,66177.0,0.151108]
[1729697161430,0.01387332,66183.0,66182.0,0.151098]
[1729697161657,0.22547745,66189.0,66181.0,0.302201]
[1729697161934,0.01387332,66188.0,66181.0,0.18072791]
[1729697162184,0.01387332,66193.0,66185.0,0.302179]
[1729697162439,0.01387332,66195.0,66185.0,0.302179]
[1729697162692,0.22547745,66197.0,66185.0,0.302179]
[1729697162693,0.01387332,66194.0,66185.0,0.302179]
[1729697162957,0.01387332,66193.0,66186.0,0.151089]
[1729697163160,0.01387332,66195.0,66183.0,0.302191]
[1729697163403,0.16494532,66194.0,66186.0,0.151087]
[1729697163688,0.01387332,66195.0,66186.0,0.15050381]
[1729697163923,0.22547745,66194.0,66187.0,0.23512547]
[1729697164155,0.001646,66199.0,66192.0,0.151074]
[1729697164156,0.01387332,66193.0,66192.0,0.151074]
[1729697164388,0.001646,66199.0,66187.0,0.23210381]
[1729697164389,0.001646,66199.0,66190.0,0.30216]
[1729697164647,0.001646,66199.0,66190.0,0.45266381]
[1729697164889,0.001646,66199.0,66193.0,0.151072]
[1729697165128,0.001646,66199.0,66190.0,0.15050381]
[1729697165129,0.22547745,66197.0,66190.0,0.15050381]
[1729697165361,0.01387332,66196.0,66186.0,0.151088]
[1729697165619,0.151081,66190.0,66183.0,0.37657145]
[1729697165881,0.01387332,66196.0,66186.0,0.302178]
[1729697166105,0.22547745,66195.0,66192.0,0.151074]
[1729697166365,0.01387332,66194.0,66192.0,0.151074]
[1729697166587,0.01387332,66194.0,66189.0,0.302165]
[1729697166841,0.151066,66196.0,66190.0,0.15050381]
[1729697167065,0.22547745,66195.0,66184.0,0.22547745]
[1729697167508,0.01387332,66194.0,66191.0,0.22547745]
[1729697167510,0.01387332,66194.0,66189.0,0.302161]
[1729697167755,0.22547745,66197.0,66193.0,0.151072]
[1729697168030,0.01387332,66196.0,66190.0,0.15050381]
[1729697168266,0.01387332,66196.0,66180.0,0.005863]
[1729697168267,0.01387332,66196.0,66187.0,0.22547745]
[1729697168513,0.01387332,66196.0,66180.0,0.005863]
[1729697168514,0.151096,66183.0,66180.0,0.22634045]
[1729697168753,0.17479423,66189.0,66180.0,0.22634045]
[1729697169014,0.17479423,66189.0,66180.0,0.000863]
[1729697169264,0.302185,66185.0,66180.0,0.000863]
[1729697169498,0.01387332,66184.0,66180.0,0.000863]
[1729697169739,0.1511,66181.0,66180.0,0.000863]
[1729697170243,0.01387332,66182.0,66180.0,0.000863]
[1729697170496,0.151098,66182.0,66180.0,0.000863]
[1729697170744,0.01387332,66184.0,66180.0,0.000863]
[1729697170992,0.22547745,66188.0,66183.0,0.151096]
[1729697171238,0.01387332,66187.0,66181.0,0.1511]
[1729697171471,0.01387332,66187.0,66183.0,0.151095]
[1729697171718,0.151085,66188.0,66180.0,0.000863]
[1729697171975,0.151085,66188.0,66181.0,0.1511]
[1729697172231,0.01387332,66190.0,66183.0,0.17479423]
[1729697172467,0.22547745,66187.0,66186.0,0.151089]
[1729697172697,0.52760545,66198.0,66186.0,0.302178]
[1729697172698,0.22547745,66191.0,66186.0,0.302178]
[1729697172925,0.60427,66196.0,66184.0,0.15050381]
[1729697172926,0.01386507,66190.0,66184.0,0.15050381]
[1729697173181,0.151076,66192.0,66186.0,0.151087]
[1729697173433,0.151076,66192.0,66187.0,0.151086]
[1729697173693,0.151073,66193.0,66187.0,0.151086]
[1729697173927,0.151074,66193.0,66187.0,0.151087]
[1729697174428,0.16493953,66193.0,66187.0,0.151087]
[1729697174666,0.01386553,66193.0,66190.0,0.151079]
[1729697174910,0.151067,66196.0,66189.0,0.151082]
[1729697174911,0.151072,66194.0,66189.0,0.151082]
[1729697175150,0.151074,66193.0,66187.0,0.151086]
[1729697175376,0.01386553,66194.0,66188.0,0.302168]
[1729697175589,0.151068,66195.0,66189.0,0.15108]
[1729697175803,0.151068,66195.0,66187.0,0.453261]
[1729697176029,0.01386553,66196.0,66188.0,0.302168]
[1729697176267,0.16492953,66197.0,66192.0,0.151073]
[1729697176482,0.16492953,66197.0,66190.0,0.151079]
[1729697176483,0.151066,66196.0,66190.0,0.151079]
[1729697176710,0.01386553,66197.0,66196.0,0.151066]
[1729697176927,0.001646,66199.0,66198.0,0.151061]
[1729697177142,0.001646,66199.0,66197.0,0.151063]
[1729697177828,0.001646,66199.0,66190.0,0.15050381]
[1729697178288,0.001646,66199.0,66194.0,0.15107]
[1729697178507,0.001646,66199.0,66192.0,0.302151]
[1729697178719,0.001646,66199.0,66197.0,0.151063]
[1729697178953,0.001646,66199.0,66193.0,0.302143]
[1729697179162,0.001646,66199.0,66191.0,0.302155]
[1729697179377,0.001646,66199.0,66195.0,0.151068]
[1729697179619,0.001646,66199.0,66193.0,0.302146]
[1729697179861,0.152705,66199.0,66193.0,0.151072]
[1729697180097,0.1965437,66198.0,66192.0,0.151075]
[1729697180334,0.01386593,66197.0,66192.0,0.151075]
[1729697180566,0.151062,66198.0,66192.0,0.151075]
[1729697180814,0.22547745,66197.0,66187.0,0.396771]
[1729697181053,0.01386593,66196.0,66188.0,0.22547745]
[1729697181285,0.152705,66199.0,66189.0,0.302165]
[1729697181520,0.151062,66198.0,66192.0,0.151075]
[1729697181982,0.001646,66199.0,66190.0,0.30216]
[1729697182455,0.001646,66199.0,66197.0,0.22547745]
[1729697182458,0.001646,66199.0,66198.0,0.151061]
[1729697182754,0.001646,66199.0,66198.0,0.51737978]
[1729697182989,0.001646,66199.0,66198.0,0.51435904]
[1729697183231,0.001646,66199.0,66198.0,0.61095904]
[1729697183466,0.001646,66199.0,66198.0,0.51961622]
[1729697183971,0.001646,66199.0,66198.0,0.69441045]
[1729697184198,0.001646,66199.0,66198.0,0.64961622]
[1729697185166,0.001646,66199.0,66198.0,0.74961622]
[1729697185404,0.001646,66199.0,66198.0,0.92441045]
[1729697185641,0.001646,66199.0,66198.0,0.79441045]
[1729697186379,0.001646,66199.0,66198.0,0.79541045]
[1729697186692,0.001646,66199.0,66198.0,0.75161622]
[1729697187194,0.001646,66199.0,66198.0,0.59661622]
[1729697187912,0.001646,66199.0,66198.0,0.15050381]
[1729697188129,0.001646,66199.0,66181.0,0.17561723]
[1729697188342,0.001646,66199.0,66192.0,0.22547745]
[1729697188553,0.001646,66199.0,66186.0,0.302178]
[1729697188819,0.151062,66198.0,66189.0,0.151082]
[1729697189038,0.151062,66198.0,66189.0,0.15050381]
[1729697189246,0.16656039,66199.0,66189.0,0.30158481]
[1729697190100,0.01550139,66199.0,66192.0,0.151074]
[1729697190441,0.152706,66199.0,66189.0,0.30158581]
[1729697190531,0.001646,66199.0,66189.0,0.15050381]
[1729697190746,0.001646,66199.0,66190.0,0.302159]
[1729697190961,0.001646,66199.0,66189.0,0.15050381]
[1729697191170,0.01385539,66198.0,66189.0,0.24903774]
[1729697191380,0.001646,66199.0,66189.0,0.24903774]
[1729697191606,0.151062,66198.0,66189.0,0.24903774]
[1729697191812,0.01385539,66198.0,66190.0,0.15108]
[1729697192025,0.01385539,66197.0,66189.0,0.24903774]
[1729697192229,0.01385539,66197.0,66189.0,0.15050381]
[1729697192441,0.151062,66198.0,66189.0,0.15050381]
[1729697192650,0.01550139,66199.0,66189.0,0.26414604]
[1729697192651,0.22547745,66197.0,66189.0,0.26414604]
[1729697192942,0.01385539,66196.0,66189.0,0.15050381]
[1729697193154,0.151069,66195.0,66189.0,0.15050381]
[1729697193368,0.151074,66193.0,66182.0,0.151097]
[1729697193588,0.01385539,66194.0,66183.0,0.15050381]
[1729697193822,0.01385539,66196.0,66183.0,0.15050381]
[1729697194051,0.01385539,66196.0,66183.0,0.24871204]
[1729697194298,0.151067,66196.0,66185.0,0.15109]
[1729697194511,0.15107,66195.0,66183.0,0.24871204]
[1729697194721,0.25653199,66192.0,66183.0,0.24871204]
[1729697194936,0.25653199,66192.0,66185.0,0.151091]
[1729697195148,0.25653199,66192.0,66183.0,0.55090104]
[1729697195370,0.001646,66199.0,66184.0,0.07780645]
[1729697195585,0.22547745,66198.0,66185.0,0.15050381]
[1729697195811,0.25653199,66195.0,66189.0,0.151082]
[1729697196019,0.22547745,66198.0,66189.0,0.30158581]
[1729697196482,0.37653945,66198.0,66189.0,0.15050381]
[1729697196708,0.151062,66198.0,66189.0,0.15050381]
[1729697196954,0.001646,66199.0,66189.0,0.15050381]
[1729697197180,0.151062,66198.0,66189.0,0.15050381]
[1729697197612,0.303768,66199.0,66189.0,0.15050381]
[1729697197836,0.151063,66198.0,66189.0,0.15050381]
[1729697198118,0.151061,66198.0,66189.0,0.15050381]
[1729697198341,0.001646,66199.0,66189.0,0.15050381]
[1729697198789,0.151062,66198.0,66189.0,0.15050381]
[1729697199256,0.151064,66197.0,66189.0,0.15050381]
[1729697199460,0.001646,66196.0,66189.0,0.15050381]
[1729697200722,0.0795,66195.0,66182.0,0.000823]
[1729697200928,0.0795,66195.0,66187.0,0.22547745]
[1729697201138,0.151071,66194.0,66184.0,0.302187]
[1729697201348,0.0795,66195.0,66186.0,0.151087]
[1729697201614,0.230569,66195.0,66185.0,0.15109]
[1729697201804,0.001646,66196.0,66187.0,0.22547745]
[1729697202019,0.001646,66196.0,66188.0,0.151083]
[1729697202224,0.001646,66196.0,66189.0,0.151081]
[1729697202632,0.001646,66196.0,66187.0,0.15050381]
[1729697202842,0.151069,66195.0,66187.0,0.15050381]
[1729697203051,0.08494814,66196.0,66187.0,0.15050381]
[1729697203259,0.151068,66195.0,66187.0,0.15050381]
[1729697203487,0.151071,66194.0,66187.0,0.15050381]
[1729697203929,0.001646,66196.0,66187.0,0.15050381]
[1729697204156,0.151069,66195.0,66187.0,0.15050381]
[1729697204590,0.01553035,66196.0,66187.0,0.15050381]
[1729697204803,0.151068,66195.0,66187.0,0.15050381]
[1729697205021,0.01553035,66196.0,66189.0,0.151082]
[1729697205253,0.01553035,66196.0,66195.0,0.151068]
[1729697205254,0.001646,66196.0,66195.0,0.151068]
[1729697205480,0.001646,66196.0,66190.0,0.15050381]
[1729697205821,0.001646,66196.0,66192.0,0.151074]
[1729697206129,0.001646,66196.0,66193.0,0.15050381]
[1729697206356,0.001646,66196.0,66194.0,0.151071]
[1729697206575,0.001646,66196.0,66193.0,0.30157581]
[1729697207010,0.001646,66196.0,66193.0,0.15050381]
[1729697207228,0.151069,66195.0,66186.0,0.151088]
[1729697207437,0.001646,66196.0,66187.0,0.52706726]
[1729697207642,0.001646,66196.0,66187.0,0.22547745]
[1729697207855,0.152713,66196.0,66187.0,0.22547745]
[1729697208073,0.151069,66195.0,66187.0,0.37656345]
[1729697208297,0.001646,66196.0,66189.0,0.151081]
[1729697208504,0.001646,66196.0,66188.0,0.151084]
[1729697208931,0.001646,66196.0,66187.0,0.302174]
[1729697209144,0.001646,66196.0,66190.0,0.151079]
[1729697209618,0.001646,66196.0,66189.0,0.151082]
[1729697210045,0.001646,66196.0,66188.0,0.302169]
[1729697210259,0.001646,66196.0,66195.0,0.151068]
[1729697211406,0.001646,66196.0,66195.0,0.30157181]
[1729697212334,0.001646,66196.0,66195.0,0.82620887]
[1729697212547,0.001646,66196.0,66195.0,0.59771031]
[1729697212763,0.001646,66196.0,66195.0,0.42237319]
[1729697217070,0.001646,66196.0,66195.0,0.30157181]
[1729697218602,0.001646,66196.0,66187.0,0.302172]
[1729697218603,0.001646,66196.0,66186.0,0.1]
[1729697218826,0.17533712,66188.0,66183.0,0.22547745]
[1729697219049,0.0138856,66187.0,66184.0,0.15050381]
[1729697219469,0.0138856,66186.0,66185.0,0.151091]
[1729697219691,0.22547745,66194.0,66189.0,0.151081]
[1729697219911,0.22547745,66194.0,66186.0,0.302178]
[1729697219912,0.0138856,66193.0,66186.0,0.151088]
[1729697220128,0.0138856,66192.0,66186.0,0.151089]
[1729697220352,0.22547745,66194.0,66185.0,0.302183]
[1729697220353,0.0138856,66191.0,66189.0,0.151081]
[1729697220569,0.0138856,66190.0,66186.0,0.151089]
[1729697220793,0.001646,66196.0,66188.0,0.151084]
[1729697220794,0.0138856,66189.0,66188.0,0.151084]
[1729697221029,0.01390986,66189.0,66188.0,0.151084]
[1729697221306,0.01390986,66195.0,66187.0,0.45267581]
[1729697221515,0.22712345,66196.0,66187.0,0.45267581]
[1729697221516,0.22712345,66196.0,66190.0,0.151077]
[1729697221736,0.22712345,66196.0,66188.0,0.07548568]
[1729697221737,0.001646,66196.0,66188.0,0.07548568]
[1729697221958,0.001646,66196.0,66189.0,0.45266881]
[1729697222173,0.001646,66196.0,66190.0,0.00302141]
[1729697222399,0.001646,66196.0,66195.0,0.151068]
[1729697222643,0.001646,66196.0,66192.0,0.302148]
[1729697222867,0.001646,66196.0,66194.0,0.15107]
[1729697223312,0.001646,66196.0,66193.0,0.15050381]
[1729697223966,0.001646,66196.0,66195.0,0.151068]
[1729697224381,0.001646,66196.0,66195.0,0.30157181]
[1729697227067,0.001646,66196.0,66195.0,0.15050381]
[1729697227315,0.001646,66196.0,66195.0,0.21842419]
[1729697227755,0.001646,66196.0,66195.0,0.15050381]
[1729697227998,0.001646,66196.0,66190.0,0.15108]
[1729697228241,0.001646,66196.0,66195.0,0.30157181]
[1729697228724,0.00141067,66196.0,66195.0,0.30157181]
[1729697229393,0.00141067,66196.0,66195.0,0.15050381]
[1729697229617,0.00141067,66196.0,66188.0,0.151083]
[1729697229845,0.00141067,66196.0,66189.0,0.19583081]
[1729697230277,0.17533712,66195.0,66189.0,0.15050381]
[1729697230718,0.00141067,66196.0,66189.0,0.15050381]
[1729697230719,0.15247667,66196.0,66189.0,0.15050381]
[1729697230919,0.00141067,66196.0,66189.0,0.15050381]
[1729697231142,0.17533712,66190.0,66184.0,0.151092]
[1729697231404,0.17533712,66190.0,66184.0,0.15050381]
[1729697233568,0.17533712,66185.0,66182.0,0.000823]
[1729697233791,0.01390662,66184.0,66182.0,0.000823]
[1729697234002,0.21978061,66189.0,66183.0,0.15050381]
[1729697234003,0.04444349,66189.0,66183.0,0.15050381]
[1729697234214,0.01390628,66188.0,66184.0,0.151093]
[1729697234640,0.04444349,66189.0,66183.0,0.15050381]
[1729697235487,0.04444349,66189.0,66182.0,0.000823]
[1729697235488,0.17533712,66189.0,66182.0,0.000823]
[1729697235701,0.32642012,66189.0,66182.0,0.000823]
[1729697235909,0.151085,66188.0,66182.0,0.000823]
[1729697236383,0.17533712,66189.0,66182.0,0.000823]
[1729697236652,0.32641912,66189.0,66182.0,0.000823]
[1729697237289,0.151084,66188.0,66182.0,0.000823]
[1729697237501,0.151086,66188.0,66182.0,0.000823]
[1729697237715,0.151087,66187.0,66182.0,0.000823]
[1729697237958,0.17533712,66189.0,66182.0,0.000823]
[1729697238463,0.151084,66188.0,66182.0,0.000823]
[1729697238686,0.17533712,66189.0,66182.0,0.000823]
[1729697238910,0.04448931,66192.0,66183.0,0.15050381]
[1729697239129,0.22547745,66193.0,66183.0,0.32886259]
[1729697239336,0.22547745,66193.0,66191.0,0.151077]
[1729697239548,0.22547745,66193.0,66184.0,0.04136716]
[1729697239762,0.00141067,66196.0,66189.0,0.15108]
[1729697239974,0.22547745,66195.0,66189.0,0.15050381]
[1729697240222,0.22547745,66195.0,66183.0,0.302189]
[1729697240453,0.22547745,66195.0,66182.0,0.000823]
[1729697240454,0.17533712,66189.0,66182.0,0.000823]
[1729697240652,0.17533712,66185.0,66182.0,0.000823]
[1729697241093,0.151088,66187.0,66182.0,0.000823]
[1729697241330,0.302174,66187.0,66182.0,0.000823]
[1729697241550,0.22547745,66188.0,66182.0,0.000823]
[1729697241783,0.01388959,66186.0,66182.0,0.000823]
[1729697241995,0.01388959,66185.0,66182.0,0.000823]
[1729697242207,0.151094,66184.0,66182.0,0.000823]
[1729697242415,0.17533712,66185.0,66182.0,0.000823]
[1729697242623,0.18922671,66185.0,66182.0,0.000823]
[1729697243061,0.01388959,66184.0,66182.0,0.000823]
[1729697243270,0.17533712,66185.0,66182.0,0.000823]
[1729697243476,0.18922671,66185.0,66182.0,0.000823]
[1729697243691,0.01388959,66184.0,66182.0,0.000823]
[1729697244434,0.01388959,66187.0,66183.0,0.15050381]
[1729697244649,0.04447322,66191.0,66183.0,0.15050381]
[1729697244867,0.04447322,66191.0,66183.0,0.30159981]
[1729697245301,0.04447322,66191.0,66184.0,0.151092]
[1729697245302,0.0444503,66191.0,66184.0,0.151092]
[1729697245515,0.0444503,66192.0,66184.0,0.151092]
[1729697245727,0.01388829,66191.0,66183.0,0.30159981]
[1729697245935,0.01388829,66190.0,66183.0,0.15050381]
[1729697246178,0.0444503,66192.0,66184.0,0.06063158]
[1729697246179,0.01388829,66189.0,66184.0,0.06063158]
[1729697246396,0.0889006,66195.0,66184.0,0.06063158]
[1729697246397,0.001646,66195.0,66194.0,0.151071]
[1729697250942,0.001646,66195.0,66194.0,0.15409207]
[1729697253353,0.001646,66195.0,66194.0,0.151071]
[1729697253794,0.001646,66195.0,66194.0,0.40782791]
[1729697256215,0.001646,66195.0,66194.0,0.30157481]
[1729697257765,0.001646,66195.0,66194.0,0.151071]
[1729697262128,0.001646,66195.0,66183.0,0.000823]
[1729697262357,0.001646,66195.0,66188.0,0.302165]
[1729697262607,0.001646,66195.0,66185.0,0.22547745]
[1729697262608,0.001646,66195.0,66194.0,0.151071]
[1729697265043,0.001646,66195.0,66193.0,0.151073]
[1729697265277,0.001646,66195.0,66192.0,0.30215]
[1729697265278,0.24039583,66195.0,66187.0,0.151086]
[1729697265510,0.24039583,66195.0,66187.0,0.151085]
[1729697265511,0.17533712,66188.0,66187.0,0.151085]
[1729697265726,0.17533712,66188.0,66186.0,0.22547745]
[1729697265943,0.18921983,66188.0,66184.0,0.151093]
[1729697266171,0.01388271,66187.0,66183.0,0.303013]
[1729697266395,0.17533712,66188.0,66186.0,0.151089]
[1729697266837,0.01388509,66187.0,66186.0,0.151089]
[1729697268024,0.23936254,66187.0,66184.0,0.151091]
[1729697268242,0.17533712,66185.0,66183.0,0.000823]
[1729697268460,0.09288509,66184.0,66183.0,0.000823]
[1729697268679,0.13733927,66184.0,66183.0,0.000823]
[1729697268898,0.15956637,66184.0,66183.0,0.000823]
[1729697269086,0.181774,66184.0,66183.0,0.000823]
[1729697269545,0.11509272,66184.0,66183.0,0.000823]
[1729697270386,0.28838819,66184.0,66183.0,0.000823]
[1729697270578,0.31059463,66184.0,66183.0,0.000823]
[1729697271367,0.332867,66184.0,66183.0,0.000823]
[1729697271597,0.44739022,66184.0,66183.0,0.000823]
[1729697271824,0.31059587,66184.0,66183.0,0.000823]
[1729697272045,0.31058771,66184.0,66183.0,0.000823]
[1729697272266,0.332867,66184.0,66183.0,0.000823]
[1729697272513,0.26618572,66184.0,66183.0,0.000823]
[1729697272740,0.26618572,66184.0,66181.0,0.000823]
[1729697272741,0.015,66182.0,66181.0,0.000823]
[1729697272964,0.015,66182.0,66176.0,0.00039418]
[1729697272965,0.32644612,66177.0,66176.0,0.00039418]
[1729697273180,0.4069112,66177.0,66176.0,0.00039418]
[1729697273398,0.40688514,66177.0,66176.0,0.00039418]
[1729697273616,0.34033121,66177.0,66176.0,0.00039418]
[1729697274045,0.38470147,66177.0,66176.0,0.00039418]
[1729697274468,0.36101425,66177.0,66176.0,0.00039418]
[1729697274706,0.40538451,66177.0,66176.0,0.00039418]
[1729697275177,0.39149942,66177.0,66176.0,0.00039418]
[1729697275426,0.36097676,66177.0,66176.0,0.00039418]
[1729697276834,0.40534702,66177.0,66176.0,0.00039418]
[1729697277066,0.36097676,66177.0,66176.0,0.00039418]
[1729697277321,0.64055083,66177.0,66176.0,0.00039418]
[1729697277538,0.59618057,66177.0,66176.0,0.00039418]
[1729697278271,0.60199286,66177.0,66176.0,0.00039418]
[1729697280643,0.60399286,66177.0,66176.0,0.00039418]
[1729697281106,0.62412232,66177.0,66176.0,0.00039418]
[1729697281318,0.66842407,66177.0,66176.0,0.00039418]
[1729697281539,0.62412232,66177.0,66176.0,0.00039418]
[1729697281758,0.62412232,66177.0,66176.0,0.00121718]
[1729697281974,0.62612232,66177.0,66176.0,0.00121718]
[1729697283061,0.32648312,66161.0,66160.0,0.000863]
[1729697283558,0.34033072,66161.0,66160.0,0.000863]
[1729697284651,0.32648312,66161.0,66160.0,0.000863]
[1729697284894,0.34030824,66161.0,66160.0,0.000863]
[1729697285173,0.34030824,66161.0,66143.0,0.000855]
[1729697285174,0.083,66146.0,66143.0,0.000855]
[1729697285401,0.32652212,66144.0,66143.0,0.000855]
[1729697285839,0.34034724,66144.0,66143.0,0.000855]
[1729697286281,0.58793001,66144.0,66143.0,0.000855]
[1729697286499,0.53777642,66144.0,66143.0,0.000855]
[1729697286783,0.67147106,66144.0,66143.0,0.000855]
[1729697287445,0.32079682,66144.0,66143.0,0.000855]
[1729697287658,0.67147106,66144.0,66143.0,0.000855]
[1729697288084,0.63555388,66144.0,66143.0,0.000855]
[1729697288305,0.66315622,66144.0,66143.0,0.000855]
[1729697288773,0.81866003,66144.0,66143.0,0.000855]
[1729697289202,0.81866003,66144.0,66127.0,0.0009077]
[1729697289203,0.197,66133.0,66127.0,0.0009077]
[1729697289411,0.229121,66128.0,66127.0,0.0009077]
[1729697289629,0.24292217,66128.0,66127.0,0.0009077]
[1729697290092,0.41825929,66128.0,66127.0,0.0009077]
[1729697290310,0.5687631,66128.0,66127.0,0.0009077]
[1729697290533,0.5687631,66128.0,66127.0,0.000855]
[1729697292293,0.59080622,66128.0,66127.0,0.000855]
[1729697292727,0.44030241,66128.0,66127.0,0.000855]
[1729697292944,0.03584429,66128.0,66127.0,0.000855]
[1729697293156,0.01380117,66131.0,66127.0,0.000855]
[1729697293372,0.17533712,66128.0,66127.0,0.000855]
[1729697294683,0.01380117,66129.0,66127.0,0.000855]
[1729697294891,0.17252418,66130.0,66127.0,0.000855]
[1729697295415,0.4990793,66130.0,66127.0,0.000855]
[1729697295626,0.151221,66128.0,66127.0,0.000855]
[1729697295838,0.01377876,66129.0,66127.0,0.000855]
[1729697296059,0.52789845,66133.0,66127.0,0.000855]
[1729697296273,0.151219,66129.0,66127.0,0.000855]
[1729697296529,0.151221,66128.0,66127.0,0.000855]
[1729697297534,0.16499976,66128.0,66127.0,0.000855]
[1729697297741,0.31550357,66128.0,66127.0,0.000855]
[1729697299213,0.31550487,66128.0,66127.0,0.000855]
[1729697300509,0.01378006,66128.0,66127.0,0.000855]
[1729697301013,0.16499406,66132.0,66127.0,0.000855]
[1729697301272,0.01378006,66131.0,66127.0,0.000855]
[1729697301537,0.005,66139.0,66127.0,0.000855]
[1729697301538,0.01378006,66132.0,66127.0,0.15135881]
[1729697301828,0.22547745,66140.0,66131.0,0.151215]
[1729697302043,0.22547745,66130.0,66127.0,0.000855]
[1729697302296,0.22547745,66140.0,66127.0,0.000855]
[1729697302297,0.01379186,66129.0,66127.0,0.000855]
[1729697302555,0.01379186,66135.0,66127.0,0.000855]
[1729697303063,0.22547745,66133.0,66127.0,0.000855]
[1729697303303,0.52787045,66140.0,66127.0,0.15135881]